fUST/lending_fUST_20251012
["ID","MTS","AMOUNT","RATE_DAILY","PERIOD"]
[390903245,1760207549512,-2.02105247,0.0002369,2]
[390903246,1760207551078,-244.51755038,0.0002369,2]
[390903247,1760207553056,-277.17809647,0.0002369,2]
[390903248,1760207555356,-268.35142128,0.0002369,2]
[390903249,1760207557338,-300.0,0.0002369,2]
[390903250,1760207560201,587.27,0.0002368,10]
[390903251,1760207568226,-177.74139056,0.00023689,2]
[390903252,1760207568254,-264.13518759,0.00023689,2]
[390903253,1760207568284,-293.67181282,0.00023689,2]
[390903254,1760207568313,-500.0,0.00023689,2]
[390903255,1760207568342,-165.32313332,0.00023689,2]
[390903256,1760207568368,-500.0,0.00023689,2]
[390903257,1760207568395,-500.0,0.00023689,2]
[390903258,1760207568424,-500.0,0.00023689,2]
[390903259,1760207568452,-500.0,0.00023689,2]
[390903260,1760207568481,-500.0,0.00023689,2]
[390903261,1760207568508,-500.0,0.00023689,2]
[390903262,1760207568537,-500.0,0.00023689,2]
[390903263,1760207569683,5000.0,0.00023689,2]
[390903264,1760207570321,-500.0,0.00023689,2]
[390903265,1760207570602,519.48,0.0002368,10]
[390903266,1760207572722,394.0,0.00023071,2]
[390903267,1760207575051,500.0,0.00023689,2]
[390903268,1760207575076,500.0,0.00023689,2]
[390903269,1760207575112,481.16745673,0.00023689,2]
[390903270,1760207575136,500.0,0.00023689,2]
[390903271,1760207581795,432.9,0.0002368,10]
[390903272,1760207582757,300.0,0.00023689,2]
[390903273,1760207591147,-6271.1117127,0.0002369,2]
[390903274,1760207592353,5000.0,0.00023689,2]
[390903275,1760207592462,372.46254327,0.0002368,10]
[390903276,1760207592484,13.35745673,0.0002368,10]
[390903277,1760207593610,394.0,0.00023322,2]
[390903278,1760207594670,500.0,0.00023689,2]
[390903279,1760207594695,500.0,0.00023689,2]
[390903280,1760207594720,500.0,0.00023689,2]
[390903281,1760207594750,500.0,0.00023689,2]
[390903282,1760207594795,500.0,0.00023689,2]
[390903283,1760207594840,500.0,0.00023689,2]
[390903284,1760207596750,-1220.19,0.0002369,2]
[390903285,1760207597239,-10000.01,0.0002369,2]
[390903286,1760207597593,-10000.01,0.0002369,2]
[390903287,1760207599108,170.61,0.0002368,3]
[390903288,1760207599394,-9829.4,0.0002369,2]
[390903289,1760207599499,-10000.01,0.0002369,2]
[390903290,1760207602623,500.0,0.00023689,2]
[390903291,1760207602869,394.0,0.00023587,2]
[390903292,1760207602966,500.0,0.00023689,2]
[390903293,1760207603432,363.82,0.0002368,10]
[390903294,1760207606024,394.0,0.00023268,2]
[390903295,1760207606662,-7848.19,0.0002369,2]
[390903296,1760207607265,4068.47265181,0.00023689,2]
[390903297,1760207609572,511.88,0.0002368,3]
[390903298,1760207612053,500.0,0.00023689,2]
[390903299,1760207612079,500.0,0.00023689,2]
[390903300,1760207612105,500.0,0.00023689,2]
[390903301,1760207612130,500.0,0.00023689,2]
[390903302,1760207612157,500.0,0.00023689,2]
[390903303,1760207612182,500.0,0.00023689,2]
[390903304,1760207612206,500.0,0.00023689,2]
[390903305,1760207612231,500.0,0.00023689,2]
[390903306,1760207612256,539.14870186,0.00023689,2]
[390903307,1760207612281,486.50864633,0.00023689,2]
[390903308,1760207612304,13.49135367,0.00023689,2]
[390903309,1760207612330,500.0,0.00023689,2]
[390903310,1760207612356,432.14729492,0.00023689,2]
[390903311,1760207612381,500.0,0.00023689,2]
[390903312,1760207612407,500.0,0.00023689,2]
[390903313,1760207612434,500.0,0.00023689,2]
[390903314,1760207612459,243.52274732,0.00023689,2]
[390903315,1760207612486,500.0,0.00023689,2]
[390903316,1760207612512,500.0,0.00023689,2]
[390903317,1760207612544,500.0,0.00023689,2]
[390903318,1760207612572,500.0,0.00023689,2]
[390903319,1760207612606,500.0,0.00023689,2]
[390903320,1760207612650,500.0,0.00023689,2]
[390903321,1760207612680,500.0,0.00023689,2]
[390903322,1760207613466,151.0,0.000236,7]
[390903323,1760207613786,151.0,0.00022,9]
[390903324,1760207613823,338.43,0.0002368,10]
[390903325,1760207614222,151.0,0.000205,4]
[390903326,1760207614570,-3413.41860409,0.0002369,2]
[390903327,1760207614643,151.0,0.000189,2]
[390903328,1760207614933,151.0,0.000173,2]
[390903329,1760207615604,2717.41860409,0.00023689,2]
[390903330,1760207615625,2282.58139591,0.00023689,2]
[390903331,1760207616155,234.45058799,0.00023689,2]
[390903332,1760207619180,-4463.55941201,0.0002369,2]
[390903333,1760207619331,-10000.01,0.0002369,2]
[390903334,1760207619514,-10000.01,0.0002369,2]
[390903335,1760207619713,-10000.01,0.0002369,2]
[390903336,1760207620545,-10000.01,0.0002369,2]
[390903337,1760207620685,-10000.01,0.0002369,2]
[390903338,1760207621014,-10000.01,0.0002369,2]
[390903339,1760207622736,394.0,0.00023541,2]
[390903340,1760207623081,500.84,0.0002005,2]
[390903341,1760207623731,1001.67,0.00021873,2]
[390903342,1760207624754,282.02,0.0002368,10]
[390903343,1760207626881,500.0,0.00023689,2]
[390903344,1760207626933,500.0,0.00023689,2]
[390903345,1760207626987,616.25264542,0.00023689,2]
[390903346,1760207701969,637.9,0.00019619,2]
[390903347,1760207782658,629.78,0.00019551,2]
[390903348,1760207816817,161.0,0.00020603,3]
[390903349,1760207828650,5000.0,0.00021,2]
[390903350,1760207844136,5000.0,0.00021,2]
[390903351,1760207852057,5000.0,0.00021,2]
[390903352,1760207861066,5000.0,0.00021,2]
[390903353,1760207863573,621.77,0.00019317,2]
[390903354,1760207867882,-1243.53,0.00021073,2]
[390903355,1760207880787,395.97,0.00015205,2]
[390903356,1760207881294,395.97,0.00015205,2]
[390903357,1760207884050,5000.0,0.00021,2]
[390903358,1760207892182,168.59572537,0.00021,2]
[390903359,1760207907583,5000.0,0.00021,2]
[390903360,1760207909383,299999.999999,0.0003024,60]
[390903361,1760207910726,151.0,0.00017,2]
[390903362,1760207929828,5000.0,0.00021,2]
[390903363,1760207944633,611.87,0.00019308,2]
[390903364,1760207945122,1223.75,0.00021063,2]
[390903365,1760207951937,5000.0,0.00021,2]
[390903366,1760207961028,500.0,0.00030216,60]
[390903367,1760207961274,500.0,0.00030216,60]
[390903368,1760207974075,5000.0,0.00021302,2]
[390903369,1760207996142,5000.0,0.00021,2]
[390903370,1760207998445,-265.21950802,0.00021302,2]
[390903371,1760208000465,-367.79421095,0.00021302,2]
[390903372,1760208018225,5000.0,0.00021302,2]
[390903373,1760208019406,300.0,0.00021,2]
[390903374,1760208025245,603.06,0.00019326,2]
[390903375,1760208025623,1206.11,0.00021083,2]
[390903376,1760208035187,225.31606,0.00027,120]
[390903377,1760208040754,5000.0,0.00021302,2]
[390903378,1760208043449,-177.18458148,0.00021302,2]
[390903379,1760208062923,5000.0,0.00021302,2]
[390903380,1760208073569,-287.12728628,0.00021302,2]
[390903381,1760208078422,300.0,0.000213,2]
[390903382,1760208079055,5000.0,0.00021302,2]
[390903383,1760208086887,4700.01,0.00021302,2]
[390903384,1760208086910,299.99,0.00021302,2]
[390903385,1760208102128,5000.0,0.00021302,2]
[390903386,1760208105323,595.06,0.00018837,2]
[390903387,1760208105726,1190.13,0.00020549,2]
[390903388,1760208110451,2914.83,0.00021302,2]
[390903389,1760208110473,2085.17,0.00021302,2]
[390903390,1760208118584,-259.46948852,0.00021402,2]
[390903391,1760208118606,-40.53051148,0.00022002,2]
[390903392,1760208120081,-175.23882003,0.00022002,2]
[390903393,1760208123033,-82.62058029,0.00022002,2]
[390903394,1760208123061,-153.90615407,0.00022262,2]
[390903395,1760208124970,-300.0,0.00022262,2]
[390903396,1760208125700,5000.0,0.00022002,2]
[390903397,1760208129108,157.0,0.00020603,3]
[390903398,1760208134126,5000.0,0.00022262,2]
[390903399,1760208138591,300.0,0.00022,2]
[390903400,1760208149213,-263.47326561,0.00022262,2]
[390903401,1760208149470,5000.0,0.00022262,2]
[390903402,1760208149908,300.0,0.00022,2]
[390903403,1760208151576,-234.93634612,0.00022262,2]
[390903404,1760208155266,-224.80706707,0.00022262,2]
[390903405,1760208157414,4700.01,0.00022262,2]
[390903406,1760208157436,299.99,0.00022262,2]
[390903407,1760208157914,-263.35740281,0.00022262,2]
[390903408,1760208159528,-276.96460283,0.00022262,2]
[390903409,1760208160660,300.0,0.00022,2]
[390903410,1760208161470,-67.74516149,0.00022262,2]
[390903411,1760208161489,-162.62681016,0.00022502,2]
[390903412,1760208165905,4999.97,0.00022262,2]
[390903413,1760208171642,300.0,0.00022,2]
[390903414,1760208173775,5000.0,0.00022262,2]
[390903415,1760208178613,-156.76143765,0.00022602,2]
[390903416,1760208181194,-180.54889743,0.00022602,2]
[390903417,1760208181215,-113.82077919,0.00023068,2]
[390903418,1760208181896,5000.0,0.00022602,2]
[390903419,1760208182727,-53.12990313,0.00023068,2]
[390903420,1760208182749,-343.47634642,0.00023168,2]
[390903421,1760208183033,300.0,0.00022,2]
[390903422,1760208185135,607.71,0.00018834,2]
[390903423,1760208185539,1215.42,0.00020547,2]
[390903424,1760208185930,1823.14,0.00022259,2]
[390903425,1760208194029,300.0,0.00022,2]
[390903426,1760208197645,5000.0,0.00023168,2]
[390903427,1760208197689,300.0,0.000223,2]
[390903428,1760208206326,-300.0,0.00022,2]
[390903429,1760208206354,-4400.01,0.00022951,2]
[390903430,1760208264742,578.25,0.00018876,2]
[390903431,1760208265143,1156.51,0.00020592,2]
[390903432,1760208342730,300.0,0.000206,2]
[390903433,1760208345422,556.17,0.00018847,2]
[390903434,1760208345831,1112.35,0.00020561,2]
[390903435,1760208355468,300.0,0.000206,2]
[390903436,1760208366223,300.0,0.000206,2]
[390903437,1760208378405,300.0,0.000206,2]
[390903438,1760208393891,300.0,0.000206,2]
[390903439,1760208399162,5000.0,0.00022077,2]
[390903440,1760208402545,300.0,0.000206,2]
[390903441,1760208404831,300.0,0.000206,2]
[390903442,1760208414329,300.0,0.000206,2]
[390903443,1760208414778,5000.0,0.00022077,2]
[390903444,1760208415870,300.0,0.000206,2]
[390903445,1760208422567,5000.0,0.00022077,2]
[390903446,1760208424575,300.0,0.000206,2]
[390903447,1760208425040,545.68,0.00018846,2]
[390903448,1760208425450,1091.37,0.00020559,2]
[390903449,1760208428083,300.0,0.000206,2]
[390903450,1760208435681,300.0,0.000206,2]
[390903451,1760208438186,2462.96,0.00022077,2]
[390903452,1760208438207,2537.04,0.00022077,2]
[390903453,1760208438725,300.0,0.000206,2]
[390903454,1760208446149,5000.0,0.00022077,2]
[390903455,1760208461367,5000.0,0.00022077,2]
[390903456,1760208463514,300.0,0.000206,2]
[390903457,1760208464234,300.0,0.000206,2]
[390903458,1760208465207,300.0,0.000206,2]
[390903459,1760208469209,4100.01,0.00022077,2]
[390903460,1760208469232,899.99,0.00022077,2]
[390903461,1760208474153,300.0,0.000206,2]
[390903462,1760208474962,300.0,0.000206,2]
[390903463,1760208476456,300.0,0.000206,2]
[390903464,1760208484302,300.0,0.000206,2]
[390903465,1760208484978,5000.0,0.00022077,2]
[390903466,1760208485863,300.0,0.000206,2]
[390903467,1760208489041,300.0,0.000206,2]
[390903468,1760208492828,1485.46288932,0.00022077,2]
[390903469,1760208494399,300.0,0.000206,2]
[390903470,1760208498090,300.0,0.000206,2]
[390903471,1760208499830,300.0,0.000206,2]
[390903472,1760208503983,544.91,0.00018846,2]
[390903473,1760208504394,1089.83,0.00020559,2]
[390903474,1760208507129,300.0,0.000206,2]
[390903475,1760208508420,5000.0,0.00022077,2]
[390903476,1760208524502,300.0,0.000206,2]
[390903477,1760208526576,300.0,0.000206,2]
[390903478,1760208527127,300.0,0.000206,2]
[390903479,1760208530682,2165.27,0.00022077,2]
[390903480,1760208530705,2834.73,0.00022077,2]
[390903481,1760208536496,300.0,0.000206,2]
[390903482,1760208538604,300.0,0.000206,2]
[390903483,1760208540662,300.0,0.000206,2]
[390903484,1760208547521,300.0,0.000206,2]
[390903485,1760208550277,300.0,0.000206,2]
[390903486,1760208553166,300.0,0.000206,2]
[390903487,1760208558157,300.0,0.000206,2]
[390903488,1760208560537,300.0,0.000206,2]
[390903489,1760208564195,300.0,0.000206,2]
[390903490,1760208567137,300.0,0.000206,2]
[390903491,1760208577037,300.0,0.000206,2]
[390903492,1760208578378,300.0,0.000206,2]
[390903493,1760208585329,543.49,0.00018853,2]
[390903494,1760208585756,1086.97,0.00020567,2]
[390903495,1760208587162,300.0,0.000206,2]
[390903496,1760208587787,300.0,0.000206,2]
[390903497,1760208589451,300.0,0.000206,2]
[390903498,1760208590539,300.0,0.000206,2]
[390903499,1760208597954,300.0,0.000206,2]
[390903500,1760208600699,300.0,0.000206,2]
[390903535,1760208632130,-2182.75889568,0.00021856,2]
[390903536,1760208632185,-2000.48799593,0.00021856,2]
[390903537,1760208632198,-500.0,0.00021856,2]
[390903576,1760208638115,-316.75310839,0.00021856,2]
[390903579,1760208638127,-1200.0,0.00021913,2]
[390903581,1760208638138,-300.0,0.00021913,2]
[390903583,1760208638148,-300.0,0.00021914,2]
[390903585,1760208638160,-300.0,0.00021914,2]
[390903587,1760208638171,-300.0,0.00021914,2]
[390903589,1760208638182,-300.0,0.00021914,2]
[390903591,1760208638193,-14752.67861502,0.00021915,2]
[390903594,1760208638207,-8969.59999988,0.00021915,2]
[390903596,1760208638221,-1394.1783236,0.00021915,2]
[390903598,1760208638232,-159.36753618,0.00021977,2]
[390903600,1760208638243,-257.37508083,0.00022077,2]
[390903603,1760208638255,-300.0,0.000221,2]
[390903605,1760208638267,-300.0,0.000221,2]
[390903607,1760208638279,-821.44062505,0.000221,2]
[390903610,1760208638291,-1000.0,0.00022202,2]
[390903612,1760208638303,-1630.46,0.00022281,2]
[390903614,1760208638312,-1200.0,0.00022298,2]
[390903616,1760208638324,-295.98134296,0.00022677,2]
[390903618,1760208638334,-300.0,0.00023,2]
[390903620,1760208638344,-300.0,0.00023,2]
[390903622,1760208638355,-300.0,0.00023,2]
[390903624,1760208638367,-334.58760508,0.00023277,2]
[390903626,1760208638378,-205.10522659,0.0002358,2]
[390903629,1760208638389,-223.19073062,0.00023583,2]
[390903631,1760208638402,-500.0,0.00023673,2]
[390903633,1760208638412,-500.0,0.00023673,2]
[390903635,1760208638422,-500.0,0.00023673,2]
[390903637,1760208638434,-500.0,0.00023676,2]
[390903639,1760208638445,-500.0,0.00023676,2]
[390903641,1760208638456,-18603.8837,0.00023676,2]
[390903643,1760208638466,-500.0,0.00023676,2]
[390903645,1760208638476,-500.0,0.00023676,2]
[390903648,1760208638487,-604.59011087,0.00023676,2]
[390903650,1760208638496,-151.0,0.00023676,2]
[390903652,1760208638508,-151.0,0.00023676,2]
[390903654,1760208638521,-151.0,0.00023676,2]
[390903656,1760208638532,-163.0660221,0.00023676,2]
[390903659,1760208638542,-500.0,0.00023676,2]
[390903661,1760208638551,-151.0,0.00023676,2]
[390903663,1760208638561,-151.0,0.00023676,2]
[390903665,1760208638571,-500.0,0.00023676,2]
[390903667,1760208638581,-151.0,0.00023676,2]
[390903669,1760208638591,-151.0,0.00023676,2]
[390903671,1760208638602,-500.0,0.00023676,2]
[390903673,1760208638614,-152.94808611,0.00023676,2]
[390903675,1760208638624,-500.0,0.00023676,2]
[390903677,1760208638634,-500.0,0.00023676,2]
[390903679,1760208638644,-500.0,0.00023676,2]
[390903681,1760208638654,-500.0,0.00023676,2]
[390903683,1760208638663,-500.0,0.00023676,2]
[390903686,1760208638675,-500.0,0.00023676,2]
[390903688,1760208638686,-500.0,0.00023676,2]
[390903690,1760208638696,-500.0,0.00023676,2]
[390903692,1760208638707,-500.0,0.00023676,2]
[390903694,1760208638718,-500.0,0.00023676,2]
[390903696,1760208638728,-500.0,0.00023676,2]
[390903698,1760208638738,-579.23388204,0.00023676,2]
[390903700,1760208638749,-162.380719,0.00023676,2]
[390903702,1760208638760,-165.05,0.00023676,2]
[390903704,1760208638770,-2108.05,0.0002368,3]
[390903707,1760208638780,-1054.02,0.0002368,3]
[390903709,1760208638791,-527.01,0.0002368,3]
[390903711,1760208638801,-263.51,0.0002368,3]
[390903713,1760208638811,-790.55,0.0002368,3]
[390903715,1760208638823,-235.02,0.0002368,10]
[390903717,1760208638834,-195.85,0.0002368,10]
[390903719,1760208638844,-163.21,0.0002368,10]
[390903721,1760208638855,-548.0163661,0.00023689,2]
[390903724,1760208638869,-249.28030526,0.00023689,2]
[390903726,1760208638880,-359.38339867,0.00023689,2]
[390903728,1760208638892,-500.0,0.00023689,2]
[390903730,1760208638903,-500.0,0.00023689,2]
[390903732,1760208638914,-445.29354313,0.00023689,2]
[390903734,1760208638925,-179.58362727,0.00023689,2]
[390903736,1760208638935,-226.57960262,0.00023689,2]
[390903738,1760208638946,-500.0,0.00023689,2]
[390903740,1760208638956,-500.0,0.00023689,2]
[390903742,1760208638966,-500.0,0.00023689,2]
[390903744,1760208638976,-500.0,0.00023689,2]
[390903746,1760208638988,-500.0,0.00023689,2]
[390903748,1760208638998,-500.0,0.00023689,2]
[390903751,1760208639009,-185861.9121506,0.0002369,2]
[390903752,1760208639020,-1000.0,0.00023772,2]
[390903754,1760208639030,-394.0,0.00023787,2]
[390903755,1760208639041,-207.69,0.00023787,2]
[390903756,1760208639051,-207.69,0.00023787,2]
[390903758,1760208639061,-207.69,0.00023787,2]
[390903760,1760208639072,-207.69,0.00023787,2]
[390903762,1760208639082,-207.69,0.00023787,2]
[390903764,1760208639092,-207.69,0.00023787,2]
[390903766,1760208639102,-207.7,0.00023787,2]
[390903767,1760208639113,-394.0,0.00023789,2]
[390903768,1760208639123,-420.0,0.00023814,2]
[390903769,1760208639133,-420.0,0.00023815,2]
[390903770,1760208639144,-420.0,0.00023815,2]
[390903771,1760208639153,-420.0,0.00023815,2]
[390903772,1760208639164,-394.0,0.00023846,2]
[390903773,1760208639174,-394.0,0.00023851,2]
[390903774,1760208639184,-373.1938672,0.00023877,2]
[390903775,1760208639195,-394.0,0.00023887,2]
[390903776,1760208639205,-322.01337613,0.00023899,2]
[390903777,1760208639216,-611.0562022,0.000239,2]
[390903778,1760208639226,-1680.0,0.00023926,2]
[390903779,1760208639237,-394.0,0.00023931,2]
[390903780,1760208639249,-500.0,0.0002395,2]
[390903781,1760208639259,-165.06,0.0002395,2]
[390903782,1760208639270,-394.0,0.0002397,2]
[390903783,1760208639281,-500.0,0.00023973,2]
[390903784,1760208639291,-500.0,0.00023973,2]
[390903785,1760208639302,-500.0,0.00023973,2]
[390903786,1760208639312,-500.0,0.00023973,2]
[390903787,1760208639323,-500.0,0.00023973,2]
[390903788,1760208639495,-500.0,0.00023973,2]
[390903789,1760208639505,-500.0,0.00023973,2]
[390903790,1760208639514,-500.0,0.00023973,2]
[390903791,1760208639524,-500.0,0.00023973,2]
[390903792,1760208639532,-500.0,0.00023973,2]
[390903793,1760208639542,-500.0,0.00023973,2]
[390903794,1760208639550,-380.52601766,0.00023973,2]
[390903795,1760208639559,-500.0,0.00023973,2]
[390903796,1760208639568,-34806.52375457,0.0002399,2]
[390903797,1760208639577,-2173.94,0.00023995,2]
[390903798,1760208639586,-1917.98,0.00024,2]
[390903799,1760208639595,-2650.37,0.00024,2]
[390903800,1760208639603,-269.74,0.00024,2]
[390903801,1760208639612,-230.37,0.00024,2]
[390903802,1760208639621,-156.76,0.00024,2]
[390903803,1760208639630,-294.36,0.00024,2]
[390903804,1760208639639,-394.0,0.00024028,2]
[390903805,1760208639648,-394.0,0.00024093,2]
[390903806,1760208639658,-1456.13670731,0.00024123,2]
[390903807,1760208639667,-260.0,0.00024123,2]
[390903808,1760208639677,-300.0,0.00024163,20]
[390903809,1760208639687,-300.0,0.00024163,20]
[390903810,1760208639696,-300.0,0.00024163,20]
[390903811,1760208639705,-300.0,0.00024163,20]
[390903812,1760208639715,-300.0,0.00024163,20]
[390903813,1760208639724,-300.0,0.00024163,20]
[390903815,1760208639733,-300.0,0.00024163,20]
[390903817,1760208639743,-300.0,0.00024163,20]
[390903818,1760208639752,-300.0,0.00024163,20]
[390903819,1760208639761,-300.0,0.00024163,20]
[390903820,1760208639771,-300.0,0.00024163,20]
[390903821,1760208639780,-300.0,0.00024163,20]
[390903822,1760208639789,-300.0,0.00024163,20]
[390903823,1760208639801,-300.0,0.00024163,20]
[390903824,1760208639810,-300.0,0.00024163,20]
[390903825,1760208639820,-600.0,0.00024163,20]
[390903826,1760208639830,-394.0,0.00024186,2]
[390903827,1760208639839,-656.86003574,0.00024221,2]
[390903828,1760208639848,-1000.0,0.00024221,2]
[390903829,1760208639858,-737.9041773,0.00024221,2]
[390903830,1760208639869,-1680.0,0.00024223,2]
[390903831,1760208639880,-500.0,0.00024224,2]
[390903832,1760208639889,-19292.2273969,0.00024224,2]
[390903833,1760208639899,-394.0,0.0002425,2]
[390903834,1760208639908,-394.0,0.00024256,2]
[390903835,1760208639918,-3199.0,0.00024426,2]
[390903836,1760208639929,-411.80012933,0.00024477,2]
[390903837,1760208639939,-500.0,0.00024498,2]
[390903838,1760208639950,-200.8,0.0002451,7]
[390903839,1760208639959,-1000.0,0.00024521,2]
[390903840,1760208639968,-500.0,0.00024521,2]
[390903841,1760208639978,-1000.0,0.00024521,2]
[390903842,1760208639987,-821.53753827,0.00024521,2]
[390903843,1760208639996,-1000.0,0.00024521,2]
[390903844,1760208640005,-1000.0,0.00024521,2]
[390903845,1760208640015,-1000.0,0.00024521,2]
[390903846,1760208640024,-1000.0,0.00024521,2]
[390903847,1760208640033,-1000.0,0.00024521,2]
[390903848,1760208640042,-1000.0,0.00024521,2]
[390903849,1760208640051,-2967.78935892,0.00024557,2]
[390903850,1760208640060,-2659.29693129,0.00024583,2]
[390903851,1760208640069,-394.0,0.00024583,2]
[390903852,1760208640079,-3199.0,0.00024584,2]
[390903853,1760208640088,-394.0,0.00024609,2]
[390903854,1760208640097,-645.54646138,0.00024628,2]
[390903855,1760208640106,-3734.51,0.0002465,2]
[390903856,1760208640116,-233.722692,0.00024656,2]
[390903857,1760208640125,-470.33182275,0.00024656,2]
[390903858,1760208640134,-5000.0,0.00024656,2]
[390903859,1760208640144,-518.32,0.00024657,9]
[390903860,1760208640154,-500.0,0.00024657,9]
[390903861,1760208640163,-500.0,0.00024657,9]
[390903862,1760208640173,-500.0,0.00024657,9]
[390903863,1760208640183,-555.19045507,0.00024657,9]
[390903864,1760208640193,-500.0,0.00024657,9]
[390903865,1760208640202,-500.0,0.00024657,9]
[390903866,1760208640211,-500.0,0.00024657,9]
[390903867,1760208640221,-500.0,0.00024657,9]
[390903868,1760208640231,-544.77470764,0.00024657,9]
[390903869,1760208640240,-500.0,0.00024657,9]
[390903870,1760208640250,-500.0,0.00024657,9]
[390903871,1760208640260,-500.0,0.00024657,9]
[390903872,1760208640269,-500.0,0.00024657,9]
[390903873,1760208640278,-500.0,0.00024657,9]
[390903874,1760208640288,-500.0,0.00024657,9]
[390903876,1760208640298,-500.0,0.00024657,9]
[390903878,1760208640307,-500.0,0.00024657,9]
[390903879,1760208640316,-500.0,0.00024657,9]
[390903880,1760208640325,-500.0,0.00024657,9]
[390903881,1760208640334,-500.0,0.00024657,9]
[390903882,1760208640343,-199.17,0.00024657,9]
[390903884,1760208640352,-500.0,0.00024657,9]
[390903886,1760208640361,-500.0,0.00024657,9]
[390903887,1760208640370,-500.0,0.00024657,9]
[390903889,1760208640379,-500.0,0.00024657,9]
[390903891,1760208640388,-486.83090224,0.00024657,9]
[390903892,1760208640398,-500.0,0.00024657,9]
[390903893,1760208640406,-500.0,0.00024657,9]
[390903894,1760208640416,-500.0,0.00024657,9]
[390903896,1760208640426,-500.0,0.00024657,9]
[390903898,1760208640435,-500.0,0.00024657,9]
[390903900,1760208640445,-500.0,0.00024657,9]
[390903901,1760208640454,-500.0,0.00024657,9]
[390903902,1760208640462,-500.0,0.00024657,9]
[390903903,1760208640472,-500.0,0.00024657,9]
[390903904,1760208640481,-500.0,0.00024657,9]
[390903905,1760208640490,-500.0,0.00024657,9]
[390903906,1760208640499,-500.0,0.00024657,9]
[390903907,1760208640508,-500.0,0.00024657,9]
[390903908,1760208640517,-500.0,0.00024657,5]
[390903909,1760208640526,-500.0,0.00024657,9]
[390903910,1760208640535,-501.53730619,0.00024657,9]
[390903911,1760208640544,-500.0,0.00024657,9]
[390903912,1760208640553,-500.0,0.00024657,9]
[390903913,1760208640562,-500.0,0.00024657,9]
[390903914,1760208640572,-500.0,0.00024657,9]
[390903915,1760208640581,-500.0,0.00024657,9]
[390903916,1760208640590,-500.0,0.00024657,9]
[390903917,1760208640599,-500.0,0.00024657,9]
[390903918,1760208640608,-500.0,0.00024657,9]
[390903919,1760208640617,-500.0,0.00024657,9]
[390903920,1760208640626,-500.0,0.00024657,9]
[390903921,1760208640635,-500.0,0.00024657,9]
[390903922,1760208640645,-500.0,0.00024657,9]
[390903923,1760208640654,-500.0,0.00024657,9]
[390903924,1760208640663,-500.0,0.00024657,9]
[390903925,1760208640672,-568.45,0.00024657,9]
[390903926,1760208640684,-500.0,0.00024657,9]